bitfinex/quotes_ETHUSD_20241001
["timestamp","ask_amount","ask_price","bid_price","bid_amount"]
[1727793839153,1.5352,2574.4,2573.7,3.88544]
[1727793839378,3.8847,2574.2,2573.4,0.3]
[1727793839533,7.76954,2574.2,2573.7,3.88538]
[1727793839869,7.76954,2574.2,2573.6,3.8856]
[1727793839870,3.88493,2574.1,2573.6,3.88559]
[1727793840080,3.88499,2574.1,2573.5,3.88566]
[1727793840280,3.88508,2574.0,2573.5,3.88567]
[1727793840545,5.40471,2573.8,2573.4,3.88576]
[1727793840704,5.40471,2573.8,2572.8,3.8867]
[1727793840705,3.88585,2573.5,2572.8,3.8867]
[1727793840888,3.88593,2573.4,2572.8,3.8867]
[1727793841073,3.88487,2574.1,2572.6,19.43]
[1727793841074,3.88645,2573.1,2572.6,19.43]
[1727793841368,1.5756,2573.3,2572.6,19.43]
[1727793841369,1.5756,2573.3,2572.8,3.88671]
[1727793841570,5.46168,2573.3,2572.8,3.88671]
[1727793841807,5.46168,2573.3,2572.7,0.45965903]
[1727793841808,3.88622,2573.2,2572.7,0.45965903]
[1727793842120,3.8864,2573.1,2572.6,19.43]
[1727793842420,3.8864,2573.1,2572.2,5.40454]
[1727793842421,3.88677,2572.9,2572.2,3.88762]
[1727793842583,5.50723,2573.1,2572.4,3.88739]
[1727793842786,5.50723,2573.1,2572.6,3.88708]
[1727793842982,5.50723,2573.1,2572.5,3.88723]
[1727793843293,3.88691,2572.8,2572.2,3.88759]
[1727793843809,3.88691,2572.8,2572.0,3.8879]
[1727793843810,3.88698,2572.7,2572.0,3.8879]
[1727793844141,1.6208,2573.1,2572.0,3.22497]
[1727793844468,1.6208,2573.1,2572.6,3.88703]
[1727793844776,1.6208,2573.1,2572.8,3.88672]
[1727793845180,0.80877759,2573.7,2571.5,27.2303]
[1727793845181,3.88771,2572.3,2571.5,27.2303]
[1727793845406,3.88771,2572.3,2571.4,6.2037096]
[1727793845407,8.40508346,2572.5,2571.8,3.88822]
[1727793845601,4.51774346,2572.5,2571.6,3.88855]
[1727793845800,0.80877759,2572.9,2571.4,3.88888]
[1727793845801,3.88788,2572.1,2571.4,3.88888]
[1727793846044,3.88812,2572.0,2571.4,3.88888]
[1727793846227,1.6267,2571.7,2571.2,3.88916]
[1727793846509,4.51774346,2572.2,2571.2,3.88916]
[1727793846510,1.6267,2572.0,2571.5,3.88863]
[1727793846706,1.6267,2572.0,2571.6,3.88862]
[1727793846915,1.6267,2572.0,2571.5,3.88863]
[1727793847202,5.51473,2572.0,2571.3,3.88898]
[1727793847364,5.51473,2572.0,2571.2,0.938787]
[1727793847365,1.6267,2572.0,2571.2,0.938787]
[1727793847569,1.6267,2572.0,2571.7,3.88846]
[1727793847909,5.73129069,2572.8,2572.0,3.8879]
[1727793847910,1.626,2572.3,2572.0,3.8879]
[1727793848306,3.88689,2572.8,2572.0,3.8879]
[1727793848307,5.51306,2572.7,2572.1,3.88785]
[1727793848510,3.88724,2572.6,2571.8,3.88826]
[1727793848672,3.88724,2572.6,2572.0,3.88798]
[1727793848869,3.88751,2572.4,2571.8,3.88824]
[1727793849095,3.88751,2572.4,2571.9,3.88815]
[1727793849506,1.626,2572.7,2571.7,3.88838]
[1727793849681,1.626,2572.7,2571.7,4.577218]
[1727793849682,3.88727,2572.5,2571.7,4.577218]
[1727793849870,3.88727,2572.5,2571.3,8.9387]
[1727793849871,3.88771,2572.3,2571.3,8.9387]
[1727793850178,3.8879,2572.1,2571.6,3.88855]
[1727793850367,7.77587,2572.1,2571.5,3.88871]
[1727793850570,1.626,2572.2,2571.6,3.88849]
[1727793850840,1.626,2572.2,2571.4,3.88883]
[1727793850996,1.626,2572.2,2571.2,3.88913]
[1727793850997,3.8884,2571.8,2571.2,3.88913]
[1727793851320,3.88861,2571.7,2571.2,1.282783]
[1727793851474,10.42707828,2572.7,2571.0,3.88945]
[1727793851475,1.5033,2571.5,2571.0,3.88945]
[1727793851682,1.5033,2571.5,2570.8,1.551]
[1727793851683,3.88895,2571.4,2570.8,5.44072]
[1727793851878,3.88895,2571.4,2570.8,3.88972]
[1727793852079,3.88895,2571.4,2570.8,7.77946]
[1727793852323,3.88895,2571.4,2570.8,3.88972]
[1727793852324,3.88911,2571.3,2570.8,3.88972]
[1727793852515,3.88911,2571.3,2570.6,30.73004]
[1727793852516,3.88925,2571.2,2570.6,3.89001]
[1727793852748,3.88925,2571.2,2570.4,19.43]
[1727793852749,1.6058,2570.9,2570.5,3.89018]
[1727793853019,1.6058,2570.9,2570.4,3.89034]
[1727793853217,1.6058,2570.9,2570.6,3.89013]
[1727793853391,1.5879,2571.2,2570.8,3.88983]
[1727793853595,1.5879,2571.2,2570.4,2.483514]
[1727793853596,1.5879,2571.2,2570.6,3.89005]
[1727793853780,5.47721,2571.2,2570.6,3.89005]
[1727793854122,5.47721,2571.2,2570.4,2.483514]
[1727793854123,5.47721,2571.2,2570.4,6.373904]
[1727793854280,5.47721,2571.2,2570.5,0.6373904]
[1727793854481,1.5879,2571.2,2570.5,0.6373904]
[1727793854720,1.5879,2571.2,2570.9,3.88959]
[1727793854924,5.90986482,2572.4,2570.6,0.07779407]
[1727793854925,1.5902,2571.7,2571.0,0.07777262]
[1727793855091,1.5902,2571.7,2571.2,7.77827]
[1727793855276,1.5902,2571.7,2571.3,3.88899]
[1727793855520,1.5902,2571.7,2571.0,3.88939]
[1727793855677,1.5902,2571.7,2570.9,19.43]
[1727793856007,1.5902,2571.7,2571.2,3.88913]
[1727793856179,1.5902,2571.7,2571.3,3.88903]
[1727793856381,7.77619,2572.0,2571.7,3.88839]
[1727793856382,1.593,2572.0,2571.7,3.88839]
[1727793856828,5.39969,2572.3,2571.7,3.88839]
[1727793856998,5.39974,2572.3,2571.7,3.88839]
[1727793857199,5.39974,2572.3,2571.8,3.88823]
[1727793857720,5.39974,2572.3,2571.4,1.871503]
[1727793857721,3.88795,2572.1,2571.5,3.88864]
[1727793857963,3.88795,2572.1,2571.5,4.4646543]
[1727793858230,3.88802,2572.0,2571.5,4.4646543]
[1727793858432,3.88802,2572.0,2571.5,3.88864]
[1727793858585,7.77566,2572.2,2571.6,3.88854]
[1727793858788,3.88788,2572.1,2571.5,3.88864]
[1727793858983,4.51774346,2572.2,2571.1,24.93768]
[1727793859253,3.88856,2571.7,2571.1,3.88928]
[1727793859449,3.88856,2571.7,2571.1,4.278208]
[1727793859651,3.88842,2571.8,2571.2,3.8891]
[1727793859852,1.5215,2572.0,2571.5,3.88875]
[1727793860578,1.5215,2572.0,2571.5,3.88869]
[1727793860716,1.5215,2572.0,2571.6,3.88854]
[1727793860914,1.5215,2572.0,2571.6,4.666263]
[1727793861144,1.5215,2572.0,2571.6,4.666343]
[1727793862656,3.88838,2571.8,2571.3,3.88898]
[1727793862857,3.88838,2571.8,2571.1,4.278218]
[1727793862858,3.88834,2571.8,2571.1,4.278218]
[1727793863065,3.88872,2571.6,2571.1,3.88929]
[1727793863365,5.40962,2572.0,2570.9,3.0]
[1727793863658,5.40962,2572.0,2571.5,3.88877]
[1727793863659,9.29775,2572.0,2571.5,3.88877]
[1727793863954,3.88834,2571.8,2571.2,3.88914]
[1727793864262,3.88819,2571.9,2571.3,3.88893]
[1727793864464,3.88819,2571.9,2571.3,4.277823]
[1727793864762,1.4801,2572.3,2571.8,3.8883]
[1727793865084,1.4801,2572.3,2572.0,3.88799]
[1727793865443,1.4801,2572.3,2571.9,3.88817]
[1727793865820,5.36769,2572.3,2571.8,3.88824]
[1727793866012,3.88774,2572.2,2571.6,3.88852]
[1727793866218,3.88818,2571.9,2571.5,19.43]
[1727793866462,7.77648,2571.9,2571.5,19.43]
[1727793866663,7.77648,2571.9,2571.1,4.5429]
[1727793866664,0.55,2572.1,2571.0,3.88943]
[1727793866874,1.5429,2571.5,2570.9,3.88966]
[1727793867019,5.43176,2571.5,2571.0,0.44967146]
[1727793867219,5.43176,2571.5,2571.0,4.33909146]
[1727793867220,5.4318,2571.5,2571.0,4.33909146]
[1727793867418,5.4318,2571.5,2571.0,8.22854146]
[1727793867632,3.88893,2571.4,2571.0,4.33909146]
[1727793867855,1.5429,2571.5,2571.0,8.22852146]
[1727793868087,1.5429,2571.5,2571.2,3.88922]
[1727793868285,1.5429,2571.5,2571.3,3.88906]
[1727793868418,1.5186,2571.8,2571.3,3.88906]
[1727793868620,3.88858,2571.7,2571.2,3.88913]
[1727793868922,5.407,2571.8,2571.2,7.77825]
[1727793869163,5.407,2571.8,2571.2,8.63836022]
[1727793869346,5.407,2571.8,2571.2,0.86011022]
[1727793869347,1.5186,2571.8,2571.2,0.86011022]
[1727793869548,1.5186,2571.8,2571.5,3.8887]
[1727793869867,1.5537,2572.1,2571.3,1.5367]
[1727793870047,1.5537,2572.1,2571.5,3.88868]
[1727793870251,3.88832,2571.9,2571.3,7.77798]
[1727793870489,1.5537,2572.1,2571.2,3.8892]
[1727793870490,3.88839,2571.8,2571.2,3.8892]
[1727793870632,3.88839,2571.8,2571.3,3.88894]
[1727793870848,3.88839,2571.8,2571.2,4.66698]
[1727793871208,3.88839,2571.8,2571.3,3.88898]
[1727793871339,1.5537,2572.1,2571.5,3.88869]
[1727793871340,5.44157,2572.1,2571.5,3.88869]
[1727793871556,1.5537,2572.1,2571.5,3.8887]
[1727793871722,5.4417,2572.1,2571.5,3.88868]
[1727793871927,5.44164,2572.1,2571.5,3.88874]
[1727793872124,3.88803,2572.0,2571.5,4.666513]
[1727793872440,5.44157,2572.1,2571.6,3.88855]
[1727793872619,1.5537,2572.1,2571.0,3.0]
[1727793872825,3.88817,2572.0,2571.5,3.88877]
[1727793873019,3.88815,2572.0,2571.4,3.88893]
[1727793873225,3.8881,2572.0,2571.4,3.88893]
[1727793873459,3.8881,2572.0,2571.2,3.88914]
[1727793873460,3.88806,2572.0,2571.3,3.88905]
[1727793873666,1.5537,2572.1,2571.1,3.8893]
[1727793873667,3.88863,2571.6,2571.1,3.8893]
[1727793873850,1.6178,2571.5,2571.1,3.88926]
[1727793874199,1.6178,2571.5,2571.1,4.431856]
[1727793874389,1.6178,2571.5,2570.9,3.88959]
[1727793874685,1.6178,2571.5,2570.7,3.88988]
[1727793874686,3.88924,2571.2,2570.7,3.88988]
[1727793874996,3.88895,2571.4,2570.9,3.88968]
[1727793875132,3.88901,2571.4,2570.7,3.88984]
[1727793875340,3.88909,2571.3,2570.8,3.88973]
[1727793875578,3.88934,2571.2,2570.7,3.88984]
[1727793875931,1.6178,2571.5,2570.8,3.88979]
[1727793875932,3.88918,2571.3,2570.8,3.88979]
[1727793876135,3.88926,2571.2,2570.7,3.88984]
[1727793876538,2.0991,2571.4,2570.6,3.89006]
[1727793876733,3.88949,2571.1,2570.5,7.7804]
[1727793877047,3.88946,2571.1,2570.5,3.89019]
[1727793877564,1.5744,2570.9,2570.1,24.0294]
[1727793877877,1.5744,2570.9,2570.5,3.89026]
[1727793878086,1.5744,2570.9,2570.4,3.89033]
[1727793878382,1.5744,2570.9,2570.5,7.78047]
[1727793878548,1.4807,2571.2,2570.8,3.88975]
[1727793878752,1.4807,2571.2,2570.3,4.5958]
[1727793878937,5.36956,2571.5,2570.9,3.8896]
[1727793879140,5.36956,2571.5,2570.4,5.44857072]
[1727793879141,5.36956,2571.5,2571.0,3.88952]
[1727793879882,5.36956,2571.5,2570.5,3.89018]
[1727793880049,1.4807,2571.5,2571.3,3.88899]
[1727793880243,9.31131,2571.9,2571.3,4.277889]
[1727793880597,5.42305,2571.9,2571.3,4.277889]
[1727793880767,3.88834,2571.8,2571.3,4.277879]
[1727793881843,3.88864,2571.6,2571.1,3.88929]
[1727793882183,7.77735,2571.6,2571.1,3.88929]
[1727793882389,3.88899,2571.4,2571.0,19.43]
[1727793882594,1.4761,2571.5,2571.0,19.43]
[1727793882595,3.88914,2571.3,2571.0,19.43]
[1727793882877,3.88914,2571.3,2570.7,7.41]
[1727793882878,3.88933,2571.2,2570.7,3.88991]
[1727793883181,3.88914,2571.3,2570.8,3.88976]
[1727793883349,3.88924,2571.2,2570.7,3.88991]
[1727793883548,3.88914,2571.3,2570.7,3.88991]
[1727793883549,3.88914,2571.3,2570.8,3.88983]
[1727793883954,3.88902,2571.4,2570.8,8.557424]
[1727793884145,3.88902,2571.4,2570.9,3.88959]
[1727793884540,1.4761,2571.5,2571.1,3.88928]
[1727793884742,1.4761,2571.5,2570.9,3.88957]
[1727793884950,1.4761,2571.5,2570.9,3.88956]
[1727793885249,5.3649,2571.5,2571.0,3.88945]
[1727793885453,1.4761,2571.5,2571.0,3.88945]
[1727793885647,1.4761,2571.5,2571.2,3.8891]
[1727793885839,1.4761,2571.5,2571.0,3.88946]
[1727793886076,1.4761,2571.5,2571.1,3.88936]
[1727793886493,1.4761,2571.5,2571.0,3.88946]
[1727793886776,1.4761,2571.5,2571.1,3.88934]
[1727793887085,1.4761,2571.5,2570.9,0.388956]
[1727793887086,5.36489,2571.5,2571.0,3.88941]
[1727793887264,5.36489,2571.5,2571.0,7.77887]
[1727793887460,1.4761,2571.5,2571.1,3.88935]
[1727793887775,1.4761,2571.5,2571.1,3.88924]
[1727793887976,1.4761,2571.5,2571.1,4.3170596]
[1727793888146,1.4761,2571.5,2571.2,3.88916]
[1727793888350,4.69725759,2571.7,2571.3,3.889]
[1727793888351,0.80877759,2571.7,2571.3,3.889]
[1727793888758,2.37717759,2571.8,2571.6,3.88862]
[1727793888993,1.21354723,2571.9,2571.1,4.3171696]
[1727793888994,0.80877759,2572.0,2571.2,3.88916]
[1727793889143,5.45631,2572.1,2571.6,3.88854]
[1727793889378,5.45631,2572.1,2571.1,19.8578196]
[1727793889379,0.80877759,2572.0,2571.1,19.8578196]
[1727793889629,0.80877759,2572.0,2571.4,3.88891]
[1727793889917,0.80877759,2571.9,2571.5,3.88875]
[1727793890280,0.80877759,2571.9,2571.4,3.88893]
[1727793890281,0.80877759,2571.9,2571.6,3.88861]
[1727793890615,0.80877759,2572.0,2571.7,3.88847]
[1727793890823,0.80877759,2572.0,2571.6,3.88851]
[1727793891125,0.80877759,2571.9,2571.4,3.88884]
[1727793891325,0.80877759,2571.9,2571.5,3.88874]
[1727793891618,0.80877759,2571.8,2571.5,3.88874]
[1727793891994,0.80877759,2571.8,2571.4,3.88884]
[1727793892191,0.80877759,2571.9,2571.6,3.88861]
[1727793893038,0.80877759,2571.9,2571.6,3.88852]
[1727793893353,0.80877759,2571.9,2570.5,26.84]
[1727793893354,0.80877759,2571.7,2570.5,26.84]
[1727793893640,1.21354723,2571.9,2570.5,26.84]
[1727793893641,5.09835904,2571.1,2570.6,3.89007]
[1727793893925,0.80598602,2570.9,2570.5,3.89014]
[1727793894128,2.30708602,2570.9,2570.5,3.89014]
[1727793894629,2.30708602,2570.9,2570.7,3.88998]
[1727793894844,6.95298482,2571.5,2570.7,3.88998]
[1727793894845,1.61225844,2571.5,2571.4,1.5432]
[1727793895130,3.51642305,2572.3,2571.9,7.77613]
[1727793895328,3.51642305,2572.3,2571.4,6.08078358]
[1727793895329,1.5011,2572.3,2571.7,7.77682]
[1727793895481,1.5011,2572.3,2571.7,3.88839]
[1727793895677,1.5011,2572.3,2571.8,3.88825]
[1727793895983,1.5011,2572.3,2572.0,3.888]
[1727793896515,9.24524,2572.6,2572.0,3.88793]
[1727793896817,9.24524,2572.6,2572.0,7.77585]
[1727793896818,7.37334305,2572.6,2572.0,7.77585]
[1727793897034,5.35801,2572.6,2572.0,7.77586]
[1727793897195,5.35801,2572.6,2572.0,7.77585]
[1727793897521,7.37333305,2572.6,2571.6,3.0]
[1727793897726,7.37333305,2572.6,2571.4,1.5432]
[1727793897727,2.01572459,2572.5,2571.8,3.88821]
[1727793898021,5.90315459,2572.4,2571.9,3.88817]
[1727793898684,7.77494,2572.4,2571.9,3.88817]
[1727793898892,5.90315459,2572.4,2571.7,3.88838]
[1727793899178,3.88774,2572.2,2571.7,3.88838]
[1727793899404,1.5283,2572.1,2571.7,3.88838]
[1727793899967,1.5283,2572.1,2570.8,0.3897]
[1727793899968,1.5283,2572.1,2571.5,3.88867]
[1727793900109,1.5283,2572.1,2570.8,0.3897]
[1727793900110,1.5283,2572.1,2571.4,3.88882]
[1727793900302,3.59962459,2572.4,2572.1,3.88778]
[1727793900485,5.4714,2572.4,2571.9,3.88803]
[1727793900722,8.23583705,2572.4,2571.9,3.88803]
[1727793901045,1.5839,2572.4,2572.2,3.88763]
[1727793901284,3.88667,2572.9,2572.2,3.88763]
[1727793901285,3.48446732,2572.7,2572.4,3.88741]
[1727793901385,1.4681,2572.7,2572.2,3.8876]
[1727793901580,3.88728,2572.5,2572.0,3.88792]
[1727793901837,2.01636732,2572.6,2572.2,3.88771]
[1727793902143,1.4681,2572.7,2571.7,7.41]
[1727793902433,2.42011622,2573.0,2572.6,3.88698]
[1727793902434,2.01636732,2572.9,2572.6,3.88698]
[1727793902607,2.01636732,2572.9,2572.7,3.88684]
[1727793902805,2.01636732,2572.9,2572.1,8.93512482]
[1727793903012,2.01636732,2573.0,2572.9,3.88666]
[1727793903501,1.5033,2573.3,2573.0,3.88646]
[1727793903711,1.5033,2573.3,2572.9,3.88666]
[1727793903925,3.88586,2573.5,2572.9,4.275246]
[1727793903926,5.09597093,2573.5,2572.9,4.275246]
[1727793904153,5.09597093,2573.5,2572.7,3.88687]
[1727793904154,3.88615,2573.3,2572.7,3.88687]
[1727793904313,3.8861,2573.3,2572.7,3.88687]
[1727793904638,3.8861,2573.3,2572.4,19.43]
[1727793904801,1.5297,2573.2,2572.6,7.77411]
[1727793905020,3.88636,2573.1,2572.6,3.88701]
[1727793905211,3.88636,2573.1,2572.4,23.31734]
[1727793905500,3.88636,2573.1,2572.0,3.88793]
[1727793905501,3.88731,2572.5,2572.0,3.88793]
[1727793905701,3.88711,2572.7,2572.1,3.88776]
[1727793905947,3.88766,2572.3,2571.4,12.88475]
[1727793906247,3.88818,2571.9,2571.4,5.47472]
[1727793906404,3.88818,2571.9,2571.2,3.88913]
[1727793906601,1.6283,2572.0,2571.6,3.88849]
[1727793906828,1.6283,2572.0,2571.7,3.88843]
[1727793907095,1.6283,2572.0,2571.6,3.88849]
[1727793907294,1.6283,2572.0,2571.4,7.77773]
[1727793907545,3.88832,2571.9,2571.2,3.8891]
[1727793907750,3.88832,2571.9,2571.0,1.5859]
[1727793907751,0.940457,2571.9,2571.0,5.47536]
[1727793907911,0.940457,2571.9,2571.1,3.88933]
[1727793907912,3.88872,2571.6,2571.1,3.88933]
[1727793908101,1.21018093,2571.9,2570.7,3.88995]
[1727793908316,9.40452,2572.0,2571.4,3.88883]
[1727793908999,1.6283,2572.0,2571.6,3.8886]
[1727793909253,5.51644,2572.0,2571.4,3.88883]
[1727793909412,1.6283,2572.0,2571.4,3.88883]
[1727793909598,1.6283,2572.0,2571.5,3.88871]
[1727793909801,1.6283,2572.0,2571.3,1.6105]
[1727793909802,5.51633,2572.0,2571.3,1.6105]
[1727793910110,5.51633,2572.0,2570.9,3.0]
[1727793910111,0.55,2571.9,2570.9,3.0]
[1727793910323,1.5978,2571.3,2570.5,0.550654]
[1727793910509,1.21018093,2571.6,2570.5,0.550654]
[1727793910510,3.8888,2571.5,2570.9,3.88964]
[1727793911132,5.41592,2571.6,2570.9,3.8896]
[1727793911333,5.41592,2571.6,2570.9,7.77919]
[1727793911576,2.76978093,2571.9,2571.4,3.8888]
[1727793911718,1.5596,2571.9,2571.4,3.8888]
[1727793912112,1.21018093,2572.2,2571.2,1.5799]
[1727793912314,1.21018093,2572.2,2571.2,5.46904]
[1727793912512,1.21018093,2572.0,2571.0,1.5085]
[1727793912741,3.62666323,2572.2,2571.4,3.88884]
[1727793912742,5.09798093,2572.2,2571.4,3.88884]
[1727793912950,3.88804,2572.0,2571.4,3.88883]
[1727793913437,3.88804,2572.0,2571.0,5.398]
[1727793913438,3.88896,2571.4,2571.0,1.5085]
[1727793913623,3.88896,2571.4,2570.6,19.43]
[1727793913624,1.6228,2571.2,2570.6,5.46387]
[1727793913804,1.6228,2571.2,2570.6,6.010257]
[1727793914008,1.6228,2571.2,2570.6,2.120187]
[1727793914339,1.5181,2571.6,2571.0,3.88944]
[1727793914546,5.4068,2571.6,2571.1,3.88937]
[1727793915031,5.4068,2571.6,2571.0,3.88952]
[1727793915032,3.88878,2571.5,2571.0,3.88952]
[1727793915198,1.5181,2571.6,2570.9,3.88958]
[1727793915402,3.88885,2571.5,2571.0,3.88952]
[1727793915660,3.88926,2571.2,2570.7,3.88998]
[1727793915800,3.88926,2571.2,2570.6,3.89003]
[1727793916001,0.929553,2571.5,2570.2,1.6204]
[1727793916002,3.88962,2571.0,2570.4,7.78067]
[1727793916305,5.37122,2571.0,2570.2,1.6204]
[1727793916501,5.37122,2571.0,2569.5,16.63933751]
[1727793916502,3.89003,2570.7,2569.8,7.41]
[1727793916739,1.4816,2571.0,2569.8,7.41]
[1727793916740,3.88976,2570.9,2570.3,3.89059]
[1727793916944,3.89018,2570.6,2570.0,7.78196]
[1727793917149,2.69178093,2571.0,2569.9,2.2424]
[1727793917307,2.69178093,2571.0,2570.4,3.89036]
[1727793917308,1.4816,2571.0,2570.4,3.89036]
[1727793917504,1.4816,2571.0,2570.2,3.89068]
[1727793917732,1.4816,2571.0,2570.0,3.89096]
[1727793917733,3.88984,2570.8,2570.0,3.89096]
[1727793917934,1.76018093,2570.9,2569.9,0.741]
[1727793918108,3.89094,2570.1,2569.4,3.89184]
[1727793918345,1.6087,2570.6,2569.5,0.03450703]
[1727793918346,1.21018093,2570.5,2569.5,0.03450703]
[1727793918536,1.21018093,2570.5,2569.3,8.8959]
[1727793918537,7.11341673,2570.6,2569.3,12.78795]
[1727793918833,1.6087,2570.6,2570.2,3.89068]
[1727793919042,1.5185,2570.9,2570.6,3.89012]
[1727793919217,1.5185,2571.2,2570.7,3.88996]
[1727793919441,1.5185,2571.2,2571.0,3.8895]
[1727793919635,0.929553,2571.5,2570.8,3.88979]
[1727793919636,5.46259,2571.5,2570.8,3.88979]
[1727793919836,5.46259,2571.5,2571.0,3.88941]
[1727793919837,1.5737,2571.5,2571.0,3.88941]
[1727793920006,1.5737,2571.5,2571.1,3.88935]
[1727793920205,1.5737,2571.5,2570.7,1.507]
[1727793920206,3.50004353,2571.8,2571.3,3.88895]
[1727793920402,1.61453673,2572.2,2571.7,3.88835]
[1727793920659,5.50226673,2572.2,2571.5,5.43447]
[1727793920948,5.50226673,2572.2,2571.4,0.388895]
[1727793920949,1.61453673,2572.2,2571.4,0.388895]
[1727793921117,1.61453673,2572.2,2572.1,3.88787]
[1727793921559,1.21018093,2572.5,2572.1,3.88787]
[1727793921560,1.61453673,2572.3,2572.1,3.88787]
[1727793921830,5.46225,2573.2,2572.5,3.88726]
[1727793922353,5.46225,2573.2,2572.6,3.88706]
[1727793922704,5.46225,2573.2,2572.5,3.88726]
[1727793922946,3.88638,2573.1,2572.5,3.88726]
[1727793923132,1.576,2573.2,2572.6,3.8871]
[1727793923533,5.46232,2573.2,2572.5,3.88726]
[1727793923832,6.008502,2573.2,2572.3,3.8875]
[1727793924146,3.88656,2573.0,2572.1,3.88776]
[1727793924443,3.88675,2572.9,2572.3,3.88746]
[1727793924647,3.88656,2573.0,2572.1,3.88776]
[1727793924955,3.88713,2572.6,2571.9,5.38176]
[1727793925103,7.21866293,2573.2,2572.3,3.88743]
[1727793925104,3.88658,2573.0,2572.3,3.88743]
[1727793925418,3.88658,2573.0,2572.2,3.88771]
[1727793925616,3.88693,2572.8,2572.1,3.88777]
[1727793925854,3.88693,2572.8,2572.3,3.88755]
[1727793926019,3.88675,2572.9,2572.3,3.88755]
[1727793926219,3.88657,2573.0,2572.3,3.88755]
[1727793926548,3.88639,2573.1,2572.5,3.88721]
[1727793926755,2.122232,2573.2,2572.3,4.665012]
[1727793926756,3.88657,2573.0,2572.3,4.665012]
[1727793927066,3.88684,2572.8,2572.3,4.665012]
[1727793927209,3.88684,2572.8,2572.2,3.88771]
[1727793927407,3.88638,2573.1,2572.4,3.88741]
[1727793927651,3.88638,2573.1,2572.0,4.426116]
[1727793927652,3.88638,2573.1,2572.5,7.77435]
[1727793927860,1.576,2573.2,2572.5,3.88713]
[1727793928020,7.77286,2573.1,2572.5,3.88713]
[1727793928215,1.576,2573.2,2572.7,3.88696]
[1727793928416,1.576,2573.2,2572.5,3.88718]
[1727793928643,3.88638,2573.1,2572.5,3.88717]
[1727793928849,3.88699,2572.7,2572.1,3.88772]
[1727793929148,7.77292,2573.1,2572.3,3.88748]
[1727793929463,1.576,2573.2,2572.8,3.88679]
[1727793929665,1.576,2573.2,2572.7,3.88687]
[1727793930147,1.576,2573.2,2572.4,0.388748]
[1727793930348,1.6343,2573.6,2572.6,1.6493]
[1727793930613,1.6343,2573.6,2573.1,3.88628]
[1727793930792,7.77051,2573.9,2573.3,3.88596]
[1727793931074,3.88531,2573.8,2573.3,3.88596]
[1727793931421,3.88525,2573.9,2573.3,3.88596]
[1727793931618,3.88531,2573.8,2573.3,3.88596]
[1727793931846,1.6343,2574.0,2573.3,0.7849934]
[1727793932154,1.6343,2574.0,2573.6,3.88556]
[1727793932462,3.88455,2574.3,2573.6,3.88556]
[1727793932463,3.88455,2574.3,2573.6,3.88546]
[1727793932636,3.88486,2574.1,2573.6,3.88546]
[1727793932836,3.88508,2574.0,2573.5,3.96342555]
[1727793933140,3.88486,2574.1,2573.5,3.88566]
[1727793933141,3.88487,2574.1,2573.5,3.88566]
[1727793933361,3.885,2574.0,2573.5,3.88566]
[1727793933664,3.88526,2573.9,2573.0,24.0597]
[1727793933979,3.88455,2574.3,2573.6,3.88553]
[1727793934140,5.45282,2574.4,2573.4,3.0]
[1727793934354,3.88473,2574.2,2573.6,7.77105]
[1727793934535,3.88473,2574.2,2573.7,4.662545]
[1727793935082,3.88457,2574.3,2573.7,4.662545]
[1727793935264,3.88457,2574.3,2573.8,3.88528]
[1727793935583,5.4528,2574.4,2573.7,3.88544]
[1727793935584,3.88472,2574.2,2573.7,3.88544]
[1727793935786,3.88485,2574.1,2573.6,3.88547]
[1727793936000,3.88485,2574.1,2573.3,3.88595]
[1727793936001,3.88532,2573.8,2573.3,3.88595]
[1727793936437,1.5578,2573.7,2572.6,1.591]
[1727793936758,5.44332,2573.7,2573.0,3.88643]
[1727793936945,1.5578,2573.7,2573.1,3.88625]
[1727793937295,3.88522,2573.9,2573.3,3.88594]
[1727793937296,3.88516,2573.9,2573.3,3.88594]
[1727793937439,3.88516,2573.9,2573.3,8.55244517]
[1727793937645,7.77045,2573.9,2573.3,4.66646517]
[1727793937874,3.88516,2573.9,2573.3,4.66646517]
[1727793938122,3.88516,2573.9,2573.3,0.78052517]
[1727793938245,3.88584,2573.5,2572.9,23.31656]
[1727793938444,3.88545,2573.7,2572.9,23.31655]
[1727793938645,3.88545,2573.7,2573.2,3.88611]
[1727793938950,3.88562,2573.6,2573.1,3.88636]
[1727793939145,3.88562,2573.6,2573.1,2.720291]
[1727793939361,3.88592,2573.4,2572.9,23.31655]
[1727793939782,3.88592,2573.4,2572.9,23.31664]
[1727793939783,5.41582,2573.4,2572.9,23.31664]
[1727793939945,9.30186,2573.4,2572.9,23.31664]
[1727793940283,3.88629,2573.2,2572.7,3.8869]
[1727793940982,3.88637,2573.1,2572.6,3.88707]
[1727793941182,3.88637,2573.1,2572.3,8.9161]
[1727793941183,3.88681,2572.8,2572.3,12.80357]
[1727793941431,1.5299,2573.4,2572.2,19.43]
[1727793941682,3.88562,2573.6,2572.2,19.43]
[1727793941683,1.4987,2572.7,2572.3,3.88755]
[1727793941988,5.38574,2572.7,2572.2,23.31771]
[1727793942275,5.38521,2573.0,2572.3,6.68576784]
[1727793942586,5.38521,2573.0,2572.7,3.88694]
[1727793942587,1.4987,2573.0,2572.7,3.88694]
[1727793942758,1.4987,2573.0,2572.6,3.8871]
[1727793943581,1.4987,2573.0,2572.5,7.77443]
[1727793943748,1.4987,2573.0,2572.6,3.8871]
[1727793944165,3.88581,2573.5,2572.6,0.85516482]